[Event "Asian Zonal-ch 3.5 Women 2019"]
[Site "Zi Bo"]
[Date "2019.09.07"]
[Round "5.8"]
[White "Yuan, Ye"]
[Black "Zhang, Lanlin"]
[Result "1/2-1/2"]
[ECO "D27"]
[WhiteElo "2092"]
[BlackElo "2203"]
[Annotator "ChessBase"]
[PlyCount "83"]
[EventDate "2019.09.05"]
[EventType "swiss"]
[EventCountry "CHN"]
[SourceTitle "playchess.com"]
[Source "ChessBase"]
[SourceQuality "1"]
[TimeControl "5400+30"]

1. d4 {[%emt 0:00:00]} d5 {[%emt 0:00:28]} 2. c4 {[%emt 0:00:04]} e6 {[%emt 0:02:59]} 3. Nf3 {[%emt 0:01:47]} a6 {[%emt 0:00:21]} 4. Nc3 {[%emt 0:06:58]} dxc4 {[%emt 0:03:36]} 5. a4 {[%emt 0:01:43]} c5 {[%emt 0:08:13]} 6. e3 {[%emt 0:08:47]} Nf6 {[%emt 0:03:31]} 7. Bxc4 {[%emt 0:00:40]} Be7 {[%emt 0:00:26]} 8. O-O {[%emt 0:01:06]} Nbd7 {[%emt 0:05:34]} 9. dxc5 {[%emt 0:02:44]} Nxc5 {[%emt 0:05:56]} 10. Qxd8+ {[%emt 0:04:04]} Bxd8 {[%emt 0:00:09]} 11. b4 {[%emt 0:04:21]} Nce4 {[%emt 0:02:50]} 12. Nxe4 {[%emt 0:00:25]} Nxe4 {[%emt 0:00:05]} 13. Bb2 {[%emt 0:00:07]} Bf6 {[%emt 0:06:00]} 14. Bxf6 {[%emt 0:01:13]} Nxf6 {[%emt 0:02:35]} 15. Rfd1 {[%emt 0:00:46]} Bd7 {[%emt 0:00:49]} 16. Ne5 {[%emt 0:01:53]} Ke7 {[%emt 0:00:27]} 17. Nxd7 {[%emt 0:01:11]} Nxd7 {[%emt 0:00:06]} 18. Rac1 {[%emt 0:00:18]} Rac8 {[%emt 0:06:20]} 19. Bb3 {[%emt 0:01:18]} b5 {[%emt 0:01:51]} 20. f3 {[%emt 0:05:48]} Ne5 {[%emt 0:03:49]} 21. Kf1 {[%emt 0:01:08]} Rhd8 {[%emt 0:01:20]} 22. Rxc8 {[%emt 0:09:43]} Rxc8 {[%emt 0:02:01]} 23. axb5 {[%emt 0:00:18]} axb5 {[%emt 0:00:05]} 24. Ke2 {[%emt 0:01:16]} Nc6 {[%emt 0:02:25]} 25. Rb1 {[%emt 0:01:25]} Kd6 {[%emt 0:09:54]} 26. Kd2 {[%emt 0:03:11]} Kc7 {[%emt 0:07:47]} 27. f4 {[%emt 0:02:16]} Kb6 {[%emt 0:00:49]} 28. Bd1 {[%emt 0:01:10]} Ne7 {[%emt 0:02:44]} 29. Bf3 {[%emt 0:01:08]} Nf5 {[%emt 0:00:14]} 30. Be4 {[%emt 0:00:48]} Nd6 {[%emt 0:00:52]} 31. Bd3 {[%emt 0:00:03]} Ra8 {[%emt 0:00:04]} 32. Kc3 {[%emt 0:20:03]} Ra2 {[%emt 0:09:04]} 33. Bc2 {[%emt 0:04:21]} Nc4 {[%emt 0:01:09]} 34. Re1 {[%emt 0:00:57]} Ra3+ {[%emt 0:01:23]} 35. Kd4 {[%emt 0:02:35]} Ra2 {[%emt 0:00:09]} 36. Kc3 {[%emt 0:01:08]} Na3 {[%emt 0:07:11]} 37. Bxh7 {[%emt 0:01:30]} Rxg2 {[%emt 0:01:36]} 38. Bd3 {[%emt 0:01:04]} Rxh2 {[%emt 0:00:18]} 39. Kb3 {[%emt 0:01:13]} Rd2 {[%emt 0:00:08]} 40. Kc3 {[%emt 0:00:02]} Rh2 {[%emt 0:00:02]} 41. Kb3 {[%emt 0:00:03]} Rd2 {[%emt 0:00:04]} 42. Kc3 {[%emt 0:00:05]} 1/2-1/2

[Event "Asian Zonal-ch 3.5 Women 2019"]
[Site "Zi Bo"]
[Date "2019.09.07"]
[Round "5.9"]
[White "Hu, Yu A."]
[Black "Wang, Yuehan"]
[Result "1-0"]
[ECO "B31"]
[WhiteElo "2105"]
[BlackElo "1600"]
[Annotator "ChessBase"]
[PlyCount "97"]
[EventDate "2019.09.05"]
[EventType "swiss"]
[EventCountry "CHN"]
[SourceTitle "playchess.com"]
[Source "ChessBase"]
[SourceQuality "1"]
[TimeControl "5400+30"]

1. e4 {[%emt 0:00:37]} c5 {[%emt 0:00:00]} 2. Nf3 {[%emt 0:00:07]} Nc6 {[%emt 0:00:00]} 3. Bb5 {[%emt 0:00:27]} g6 {[%emt 0:00:00]} 4. Bxc6 {[%emt 0:00:10]} dxc6 {[%emt 0:00:10]} 5. d3 {[%emt 0:00:07]} Bg7 {[%emt 0:00:19]} 6. Nc3 {[%emt 0:01:23]} e5 {[%emt 0:00:14]} 7. Be3 {[%emt 0:00:08]} Qe7 {[%emt 0:00:22]} 8. h3 {[%emt 0:00:10]} Nf6 {[%emt 0:00:15]} 9. Qd2 {[%emt 0:00:07]} Nd7 {[%emt 0:02:01]} 10. Bh6 {[%emt 0:00:29]} Bxh6 {[%emt 0:02:13]} 11. Qxh6 {[%emt 0:00:08]} f6 {[%emt 0:00:02]} 12. O-O-O {[%emt 0:02:33]} Nf8 {[%emt 0:00:59]} 13. Qe3 {[%emt 0:00:21]} Ne6 {[%emt 0:00:15]} 14. g4 {[%emt 0:02:53]} Nd4 {[%emt 0:01:31]} 15. Nd2 {[%emt 0:01:32]} Be6 {[%emt 0:01:58]} 16. Kb1 {[%emt 0:02:08]} O-O-O {[%emt 0:01:24]} 17. f4 {[%emt 0:00:24]} g5 {[%emt 0:08:54]} 18. fxe5 {[%emt 0:08:47]} fxe5 {[%emt 0:00:10]} 19. Ne2 {[%emt 0:00:08]} h5 {[%emt 0:01:36]} 20. Nxd4 {[%emt 0:03:45]} cxd4 {[%emt 0:00:21]} 21. Qg3 {[%emt 0:00:15]} hxg4 {[%emt 0:02:22]} 22. hxg4 {[%emt 0:00:06]} Rh4 {[%emt 0:00:02]} 23. Nf3 {[%emt 0:01:40]} Rxg4 {[%emt 0:01:58]} 24. Qxe5 {[%emt 0:00:41]} Rg2 {[%emt 0:21:21]} 25. Rh8 {[%emt 0:06:19]} c5 {[%emt 0:06:20]} 26. Rdh1 {[%emt 0:08:13]} g4 {[%emt 0:05:14]} 27. Rxd8+ {[%emt 0:00:17]} Qxd8 {[%emt 0:04:44]} 28. Qxe6+ {[%emt 0:00:09]} Qd7 {[%emt 0:01:31]} 29. Qxd7+ {[%emt 0:00:54]} Kxd7 {[%emt 0:00:07]} 30. Ne1 {[%emt 0:00:03]} Re2 {[%emt 0:01:07]} 31. Kc1 {[%emt 0:00:05]} g3 {[%emt 0:00:12]} 32. Rg1 {[%emt 0:00:16]} Re3 {[%emt 0:00:09]} 33. Kd2 {[%emt 0:00:10]} Kc6 {[%emt 0:03:54]} 34. Rf1 {[%emt 0:00:18]} g2 {[%emt 0:00:52]} 35. Nxg2 {[%emt 0:00:08]} Rg3 {[%emt 0:00:05]} 36. Nf4 {[%emt 0:00:17]} Kd6 {[%emt 0:00:17]} 37. Rf2 {[%emt 0:00:17]} Ke5 {[%emt 0:00:59]} 38. Ne2 {[%emt 0:00:23]} Rh3 {[%emt 0:00:19]} 39. Rf5+ {[%emt 0:00:25]} Kd6 {[%emt 0:00:10]} 40. c3 {[%emt 0:00:07]} dxc3+ {[%emt 0:00:16]} 41. bxc3 {[%emt 0:00:06]} b5 {[%emt 0:01:01]} 42. Rf6+ {[%emt 0:00:40]} Kc7 {[%emt 0:00:07]} 43. Rf7+ {[%emt 0:00:15]} Kb6 {[%emt 0:00:11]} 44. e5 {[%emt 0:00:07]} a5 {[%emt 0:01:17]} 45. e6 {[%emt 0:01:02]} Rh8 {[%emt 0:00:19]} 46. e7 {[%emt 0:00:10]} Re8 {[%emt 0:00:06]} 47. Nf4 {[%emt 0:00:04]} Kc6 {[%emt 0:00:11]} 48. Ng6 {[%emt 0:00:05]} Kd7 {[%emt 0:01:28]} 49. Rf8 {[%emt 0:00:06]} 1-0

[Event "Asian Zonal-ch 3.5 Women 2019"]
[Site "Zi Bo"]
[Date "2019.09.07"]
[Round "5.10"]
[White "Zhao, Shengxin"]
[Black "Cai Youyang"]
[Result "1-0"]
[ECO "E01"]
[WhiteElo "2162"]
[BlackElo "1910"]
[Annotator "ChessBase"]
[PlyCount "75"]
[EventDate "2019.09.05"]
[EventType "swiss"]
[EventCountry "CHN"]
[SourceTitle "playchess.com"]
[Source "ChessBase"]
[SourceQuality "1"]
[TimeControl "5400+30"]

1. Nf3 {[%emt 0:00:00]} d5 {[%emt 0:00:00]} 2. g3 {[%emt 0:00:00]} e6 {[%emt 0:00:00]} 3. Bg2 {[%emt 0:00:09]} Nf6 {[%emt 0:00:00]} 4. O-O {[%emt 0:00:13]} Bd6 {[%emt 0:00:01]} 5. c4 {[%emt 0:03:24]} O-O {[%emt 0:00:07]} 6. d4 {[%emt 0:00:25]} c6 {[%emt 0:00:05]} 7. Nc3 {[%emt 0:02:38]} b6 {[%emt 0:00:20]} 8. Bg5 {[%emt 0:14:22]} Be7 {[%emt 0:01:15]} 9. Bxf6 {[%emt 0:03:47]} Bxf6 {[%emt 0:00:06]} 10. e4 {[%emt 0:09:12]} dxe4 {[%emt 0:00:13]} 11. Nxe4 {[%emt 0:00:07]} Be7 {[%emt 0:00:37]} 12. Qc2 {[%emt 0:00:36]} Bb7 {[%emt 0:00:39]} 13. Rfd1 {[%emt 0:00:38]} Nd7 {[%emt 0:02:07]} 14. c5 {[%emt 0:01:17]} Qc7 {[%emt 0:07:25]} 15. b4 {[%emt 0:06:19]} Rfd8 {[%emt 0:05:47]} 16. h4 {[%emt 0:02:37]} h6 {[%emt 0:01:18]} 17. Rac1 {[%emt 0:04:15]} a5 {[%emt 0:07:52]} 18. a3 {[%emt 0:02:02]} axb4 {[%emt 0:01:36]} 19. axb4 {[%emt 0:00:08]} Nf6 {[%emt 0:00:43]} 20. Ne5 {[%emt 0:10:30]} Nd5 {[%emt 0:00:11]} 21. Qb3 {[%emt 0:02:15]} bxc5 {[%emt 0:01:20]} 22. Nxc5 {[%emt 0:01:55]} Bxc5 {[%emt 0:01:51]} 23. Rxc5 {[%emt 0:00:23]} Qb6 {[%emt 0:01:35]} 24. b5 {[%emt 0:03:08]} Ra5 {[%emt 0:07:09]} 25. Qf3 {[%emt 0:01:14]} Qc7 {[%emt 0:04:17]} 26. b6 {[%emt 0:03:34]} Qxe5 {[%emt 0:01:17]} 27. Rxa5 {[%emt 0:01:31]} Qb8 {[%emt 0:01:22]} 28. Qb3 {[%emt 0:00:42]} Ne7 {[%emt 0:00:39]} 29. Be4 {[%emt 0:02:18]} Nc8 {[%emt 0:01:21]} 30. Bd3 {[%emt 0:01:20]} Rd7 {[%emt 0:02:25]} 31. Ba6 {[%emt 0:04:09]} Bxa6 {[%emt 0:00:04]} 32. Rxa6 {[%emt 0:00:04]} Qb7 {[%emt 0:00:02]} 33. Rda1 {[%emt 0:01:58]} Rxd4 {[%emt 0:00:27]} 34. Ra8 {[%emt 0:06:24]} Kh7 {[%emt 0:00:03]} 35. Rxc8 {[%emt 0:00:48]} Qxc8 {[%emt 0:00:04]} 36. b7 {[%emt 0:00:04]} Qb8 {[%emt 0:00:12]} 37. Ra8 {[%emt 0:00:05]} Qe5 {[%emt 0:00:26]} 38. Qb1+ {[%emt 0:01:09]} 1-0

[Event "Asian Zonal-ch 3.5 Women 2019"]
[Site "Zi Bo"]
[Date "2019.09.07"]
[Round "5.11"]
[White "Zhao, Caidi"]
[Black "Zhou, Zirun"]
[Result "0-1"]
[ECO "C77"]
[WhiteElo "1540"]
[BlackElo "2155"]
[Annotator "ChessBase"]
[PlyCount "90"]
[EventDate "2019.09.05"]
[EventType "swiss"]
[EventCountry "CHN"]
[SourceTitle "playchess.com"]
[Source "ChessBase"]
[SourceQuality "1"]
[TimeControl "5400+30"]

1. e4 {[%emt 0:00:00]} e5 {[%emt 0:00:00]} 2. Nf3 {[%emt 0:00:00]} Nc6 {[%emt 0:00:00]} 3. Bb5 {[%emt 0:00:00]} a6 {[%emt 0:00:00]} 4. Ba4 {[%emt 0:00:00]} Nf6 {[%emt 0:00:00]} 5. d3 {[%emt 0:00:00]} b5 {[%emt 0:00:00]} 6. Bb3 {[%emt 0:00:00]} Bc5 {[%emt 0:00:02]} 7. Nc3 {[%emt 0:00:33]} d6 {[%emt 0:00:33]} 8. Nd5 {[%emt 0:00:23]} h6 {[%emt 0:00:07]} 9. c3 {[%emt 0:00:32]} Rb8 {[%emt 0:00:15]} 10. O-O {[%emt 0:01:36]} O-O {[%emt 0:00:08]} 11. Be3 {[%emt 0:00:42]} Nxd5 {[%emt 0:05:03]} 12. Bxd5 {[%emt 0:00:53]} Bxe3 {[%emt 0:00:25]} 13. fxe3 {[%emt 0:01:28]} Ne7 {[%emt 0:00:10]} 14. Bb3 {[%emt 0:00:41]} Kh8 {[%emt 0:00:43]} 15. d4 {[%emt 0:01:39]} exd4 {[%emt 0:01:12]} 16. exd4 {[%emt 0:00:18]} f5 {[%emt 0:00:30]} 17. exf5 {[%emt 0:04:45]} Nxf5 {[%emt 0:00:09]} 18. Qd2 {[%emt 0:01:03]} Bd7 {[%emt 0:05:59]} 19. Rae1 {[%emt 0:03:10]} a5 {[%emt 0:08:00]} 20. Be6 {[%emt 0:05:16]} Bxe6 {[%emt 0:00:56]} 21. Rxe6 {[%emt 0:00:03]} Nh4 {[%emt 0:02:42]} 22. Qe3 {[%emt 0:03:46]} Nxf3+ {[%emt 0:00:19]} 23. Rxf3 {[%emt 0:00:18]} Rxf3 {[%emt 0:00:09]} 24. Qxf3 {[%emt 0:00:09]} Qg5 {[%emt 0:00:05]} 25. Qe3 {[%emt 0:03:18]} Qxe3+ {[%emt 0:00:48]} 26. Rxe3 {[%emt 0:00:04]} b4 {[%emt 0:00:06]} 27. c4 {[%emt 0:02:27]} Rf8 {[%emt 0:00:56]} 28. b3 {[%emt 0:02:18]} Rf4 {[%emt 0:01:17]} 29. d5 {[%emt 0:00:49]} Rd4 {[%emt 0:00:07]} 30. Re2 {[%emt 0:00:35]} a4 {[%emt 0:00:49]} 31. Kf2 {[%emt 0:03:02]} a3 {[%emt 0:01:17]} 32. Ke3 {[%emt 0:01:22]} Rd1 {[%emt 0:00:08]} 33. Kf4 {[%emt 0:01:05]} Kg8 {[%emt 0:00:06]} 34. Kf3 {[%emt 0:00:53]} Kf7 {[%emt 0:00:12]} 35. Kf4 {[%emt 0:00:22]} Rh1 {[%emt 0:01:27]} 36. h3 {[%emt 0:00:30]} Rb1 {[%emt 0:00:11]} 37. Ke3 {[%emt 0:02:45]} Kf6 {[%emt 0:00:05]} 38. Kd3 {[%emt 0:02:43]} Kf5 {[%emt 0:04:52]} 39. Rf2+ {[%emt 0:10:21]} Ke5 {[%emt 0:00:20]} 40. Rf7 {[%emt 0:15:06]} Rb2 {[%emt 0:01:02]} 41. Rxc7 {[%emt 0:00:13]} Rxa2 {[%emt 0:00:04]} 42. Rb7 {[%emt 0:01:49]} Ra1 {[%emt 0:01:46]} 43. Kc2 {[%emt 0:01:31]} Rg1 {[%emt 0:00:07]} 44. Ra7 {[%emt 0:01:29]} Kd4 {[%emt 0:00:06]} 45. g4 {[%emt 0:01:20]} Rg2+ {[%emt 0:00:08]} 0-1

[Event "Asian Zonal-ch 3.5 Women 2019"]
[Site "Zi Bo"]
[Date "2019.09.07"]
[Round "5.12"]
[White "Xue, Yue"]
[Black "Ha, Yihan"]
[Result "1-0"]
[ECO "B12"]
[WhiteElo "1678"]
[BlackElo "1580"]
[Annotator "NA"]
[PlyCount "101"]
[EventDate "2019.09.05"]
[EventType "swiss"]
[EventCountry "CHN"]
[SourceTitle "playchess.com"]
[Source "ChessBase"]
[SourceQuality "1"]
[TimeControl "5400+30"]

1. e4 {[%emt 0:00:00]} c6 {[%emt 0:00:00]} 2. d4 {[%emt 0:00:00]} d5 {[%emt 0:00:00]} 3. e5 {[%emt 0:00:04]} Bf5 {[%emt 0:00:00]} 4. Nf3 {[%emt 0:00:05]} e6 {[%emt 0:00:03]} 5. Be2 {[%emt 0:00:09]} Nd7 {[%emt 0:00:08]} 6. O-O {[%emt 0:00:56]} Ne7 {[%emt 0:00:09]} 7. Nbd2 {[%emt 0:02:43]} h6 {[%emt 0:00:10]} 8. c3 {[%emt 0:02:08]} g5 {[%emt 0:00:45]} 9. Ne1 {[%emt 0:04:47]} Qc7 {[%emt 0:01:00]} 10. Nb3 {[%emt 0:05:59]} Bg7 {[%emt 0:01:00]} 11. Be3 {[%emt 0:03:04]} Bg6 {[%emt 0:00:52]} 12. Nd3 {[%emt 0:12:25]} b6 {[%emt 0:00:58]} 13. Bh5 {[%emt 0:06:34]} Rc8 {[%emt 0:03:00]} 14. f4 {[%emt 0:07:18]} gxf4 {[%emt 0:17:15]} 15. Bxg6 {[%emt 0:01:08]} Nxg6 {[%emt 0:00:33]} 16. Nxf4 {[%emt 0:03:00]} Ndf8 {[%emt 0:01:54]} 17. Nh5 {[%emt 0:09:18]} Rg8 {[%emt 0:01:38]} 18. Nxg7+ {[%emt 0:02:20]} Rxg7 {[%emt 0:00:02]} 19. Bxh6 {[%emt 0:00:09]} Rg8 {[%emt 0:00:56]} 20. Qe1 {[%emt 0:05:45]} Qe7 {[%emt 0:00:54]} 21. Rc1 {[%emt 0:05:08]} Nh4 {[%emt 0:08:11]} 22. Rc2 {[%emt 0:00:33]} c5 {[%emt 0:02:09]} 23. Rcf2 {[%emt 0:02:58]} Nf5 {[%emt 0:02:05]} 24. Be3 {[%emt 0:05:38]} c4 {[%emt 0:02:57]} 25. Nd2 {[%emt 0:02:55]} Qh4 {[%emt 0:01:23]} 26. Rxf5 {[%emt 0:08:07]} Qxe1 {[%emt 0:01:16]} 27. Rxe1 {[%emt 0:00:01]} exf5 {[%emt 0:00:09]} 28. Rf1 {[%emt 0:00:01]} Ne6 {[%emt 0:01:09]} 29. Rxf5 {[%emt 0:00:07]} Ke7 {[%emt 0:00:25]} 30. Nf3 {[%emt 0:03:19]} Rg6 {[%emt 0:01:26]} 31. h4 {[%emt 0:01:30]} Rcg8 {[%emt 0:00:53]} 32. Ng5 {[%emt 0:00:13]} Nxg5 {[%emt 0:01:17]} 33. Bxg5+ {[%emt 0:00:02]} Ke6 {[%emt 0:00:12]} 34. g4 {[%emt 0:01:27]} b5 {[%emt 0:01:40]} 35. Kf2 {[%emt 0:00:17]} a5 {[%emt 0:01:40]} 36. Kf3 {[%emt 0:00:31]} b4 {[%emt 0:00:30]} 37. Rf6+ {[%emt 0:01:07]} Rxf6+ {[%emt 0:00:21]} 38. Bxf6 {[%emt 0:00:03]} a4 {[%emt 0:01:24]} 39. cxb4 {[%emt 0:03:04]} a3 {[%emt 0:00:07]} 40. bxa3 {[%emt 0:00:27]} c3 {[%emt 0:00:38]} 41. Ke2 {[%emt 0:00:36]} Rxg4 {[%emt 0:00:48]} 42. Kd3 {[%emt 0:00:14]} Rg3+ {[%emt 0:00:37]} 43. Kc2 {[%emt 0:00:04]} Kf5 {[%emt 0:01:02]} 44. b5 {[%emt 0:01:04]} Ke4 {[%emt 0:00:38]} 45. e6 {[%emt 0:02:03]} fxe6 {[%emt 0:00:39]} 46. b6 {[%emt 0:00:02]} Rg2+ {[%emt 0:02:36]} 47. Kxc3 {[%emt 0:00:03]} Rg1 {[%emt 0:00:06]} 48. a4 {[%emt 0:01:08]} Rb1 {[%emt 0:00:33]} 49. a5 {[%emt 0:00:02]} Rb5 {[%emt 0:00:09]} 50. Be5 {[%emt 0:00:26]} Kf5 {[%emt 0:00:38]} 51. Bc7 {[%emt 0:00:22]} 1-0

[Event "Asian Zonal-ch 3.5 Women 2019"]
[Site "Zi Bo"]
[Date "2019.09.08"]
[Round "6.1"]
[White "Li, Yunshan"]
[Black "Zhu, Jiner"]
[Result "0-1"]
[ECO "E06"]
[WhiteElo "2261"]
[BlackElo "2471"]
[Annotator "ChessBase"]
[PlyCount "76"]
[EventDate "2019.09.05"]
[EventType "swiss"]
[EventCountry "CHN"]
[SourceTitle "playchess.com"]
[Source "ChessBase"]
[SourceQuality "1"]
[TimeControl "5400+30"]

1. d4 {[%emt 0:00:00]} Nf6 {[%emt 0:00:00]} 2. c4 {[%emt 0:00:00]} e6 {[%emt 0:00:00]} 3. g3 {[%emt 0:00:00]} d5 {[%emt 0:00:00]} 4. Bg2 {[%emt 0:00:05]} Be7 {[%emt 0:00:09]} 5. Nf3 {[%emt 0:00:16]} O-O {[%emt 0:00:10]} 6. Qc2 {[%emt 0:00:29]} dxc4 {[%emt 0:00:34]} 7. Nbd2 {[%emt 0:03:19]} Nc6 {[%emt 0:17:34]} 8. Qxc4 {[%emt 0:02:01]} a5 {[%emt 0:04:47]} 9. O-O {[%emt 0:06:52]} a4 {[%emt 0:00:05]} 10. e4 {[%emt 0:01:16]} Bd7 {[%emt 0:03:04]} 11. Rd1 {[%emt 0:12:21]} Na5 {[%emt 0:04:03]} 12. Qc2 {[%emt 0:01:05]} Bb5 {[%emt 0:00:49]} 13. Nf1 {[%emt 0:04:20]} Ra6 {[%emt 0:11:54]} 14. Bf4 {[%emt 0:06:32]} a3 {[%emt 0:08:08]} 15. b3 {[%emt 0:04:24]} Nc6 {[%emt 0:01:36]} 16. Rac1 {[%emt 0:10:24]} Nb4 {[%emt 0:00:15]} 17. Qb1 {[%emt 0:00:14]} Rc6 {[%emt 0:01:41]} 18. Rxc6 {[%emt 0:03:17]} bxc6 {[%emt 0:01:39]} 19. Bc1 {[%emt 0:02:45]} Qa8 {[%emt 0:00:22]} 20. Ne3 {[%emt 0:00:50]} Rd8 {[%emt 0:05:27]} 21. Ne5 {[%emt 0:10:20]} Qa7 {[%emt 0:02:20]} 22. N5c4 {[%emt 0:07:45]} Bxc4 {[%emt 0:06:00]} 23. Nxc4 {[%emt 0:02:36]} Rxd4 {[%emt 0:13:54]} 24. Rxd4 {[%emt 0:02:09]} Qxd4 {[%emt 0:00:04]} 25. Bxa3 {[%emt 0:05:20]} Bc5 {[%emt 0:00:46]} 26. Ne3 {[%emt 0:01:30]} Qd2 {[%emt 0:00:29]} 27. Bxb4 {[%emt 0:02:08]} Bxb4 {[%emt 0:00:07]} 28. Qd1 {[%emt 0:02:10]} Qxa2 {[%emt 0:00:19]} 29. Qd8+ {[%emt 0:00:13]} Bf8 {[%emt 0:00:03]} 30. Qxc7 {[%emt 0:00:41]} Qb1+ {[%emt 0:00:06]} 31. Bf1 {[%emt 0:04:03]} Qxe4 {[%emt 0:00:42]} 32. Nc4 {[%emt 0:00:12]} Ng4 {[%emt 0:01:51]} 33. Qb6 {[%emt 0:05:38]} Qf5 {[%emt 0:01:47]} 34. Kg2 {[%emt 0:00:56]} c5 {[%emt 0:00:22]} 35. f3 {[%emt 0:00:43]} Qc2+ {[%emt 0:00:11]} 36. Kh3 {[%emt 0:00:05]} Nf2+ {[%emt 0:00:17]} 37. Kg2 {[%emt 0:00:27]} Ne4+ {[%emt 0:00:17]} 38. Kh3 {[%emt 0:00:27]} Ng5+ {[%emt 0:00:05]} 0-1

[Event "Asian Zonal-ch 3.5 Women 2019"]
[Site "Zi Bo"]
[Date "2019.09.08"]
[Round "6.3"]
[White "Zhai, Mo"]
[Black "Ning, Kaiyu"]
[Result "1-0"]
[ECO "D11"]
[WhiteElo "2360"]
[BlackElo "2354"]
[Annotator "NA"]
[PlyCount "123"]
[EventDate "2019.09.05"]
[EventType "swiss"]
[EventCountry "CHN"]
[SourceTitle "playchess.com"]
[Source "ChessBase"]
[SourceQuality "1"]
[TimeControl "5400+30"]

1. Nf3 {[%emt 0:00:01]} d5 {[%emt 0:00:00]} 2. g3 {[%emt 0:00:07]} c6 {[%emt 0:00:00]} 3. Bg2 {[%emt 0:00:25]} Bg4 {[%emt 0:00:00]} 4. d4 {[%emt 0:00:34]} Nf6 {[%emt 0:00:31]} 5. c4 {[%emt 0:03:00]} e6 {[%emt 0:01:02]} 6. O-O {[%emt 0:01:00]} Be7 {[%emt 0:00:32]} 7. cxd5 {[%emt 0:02:12]} exd5 {[%emt 0:00:38]} 8. Qb3 {[%emt 0:01:26]} Qb6 {[%emt 0:10:08]} 9. Qe3 {[%emt 0:00:39]} Qd8 {[%emt 0:00:20]} 10. Nh4 {[%emt 0:03:48]} O-O {[%emt 0:04:12]} 11. h3 {[%emt 0:00:26]} Bc8 {[%emt 0:00:58]} 12. Nc3 {[%emt 0:01:40]} Re8 {[%emt 0:00:31]} 13. Qd3 {[%emt 0:00:47]} Na6 {[%emt 0:10:25]} 14. a3 {[%emt 0:08:16]} Nc7 {[%emt 0:04:27]} 15. Nf5 {[%emt 0:11:01]} Bf8 {[%emt 0:09:58]} 16. g4 {[%emt 0:03:16]} Bxf5 {[%emt 0:01:31]} 17. Qxf5 {[%emt 0:02:17]} g6 {[%emt 0:02:42]} 18. Qd3 {[%emt 0:01:56]} Bg7 {[%emt 0:00:08]} 19. Rd1 {[%emt 0:01:49]} Re7 {[%emt 0:01:25]} 20. b4 {[%emt 0:04:57]} a6 {[%emt 0:08:07]} 21. a4 {[%emt 0:02:52]} Nfe8 {[%emt 0:06:09]} 22. b5 {[%emt 0:10:38]} axb5 {[%emt 0:00:27]} 23. Ba3 {[%emt 0:00:07]} b4 {[%emt 0:01:43]} 24. Bxb4 {[%emt 0:00:11]} Rd7 {[%emt 0:03:50]} 25. e3 {[%emt 0:03:28]} Ne6 {[%emt 0:00:54]} 26. Ne2 {[%emt 0:01:49]} b6 {[%emt 0:09:44]} 27. Qc2 {[%emt 0:06:22]} Rc8 {[%emt 0:00:48]} 28. Qb3 {[%emt 0:02:34]} Rb7 {[%emt 0:02:13]} 29. Rab1 {[%emt 0:03:41]} Nd6 {[%emt 0:04:14]} 30. Rdc1 {[%emt 0:05:06]} Ne4 {[%emt 0:02:05]} 31. Be1 {[%emt 0:01:49]} Bf8 {[%emt 0:02:53]} 32. Rc2 {[%emt 0:01:12]} Nd6 {[%emt 0:00:43]} 33. Rbc1 {[%emt 0:01:32]} Qd7 {[%emt 0:01:37]} 34. Nc3 {[%emt 0:05:00]} Bg7 {[%emt 0:02:54]} 35. Nxd5 {[%emt 0:03:32]} cxd5 {[%emt 0:03:39]} 36. Rxc8+ {[%emt 0:00:06]} Nxc8 {[%emt 0:00:01]} 37. Qxd5 {[%emt 0:00:10]} Nd6 {[%emt 0:01:38]} 38. Rc6 {[%emt 0:01:51]} Bf8 {[%emt 0:00:05]} 39. Rxd6 {[%emt 0:00:16]} Qxd6 {[%emt 0:00:01]} 40. Qxb7 {[%emt 0:00:09]} Qa3 {[%emt 0:00:25]} 41. Qxb6 {[%emt 0:00:37]} Qxa4 {[%emt 0:00:13]} 42. Qa5 {[%emt 0:00:59]} Qd1 {[%emt 0:00:01]} 43. Qd2 {[%emt 0:00:21]} Qb1 {[%emt 0:00:10]} 44. Bd5 {[%emt 0:00:51]} Ng5 {[%emt 0:00:23]} 45. Kg2 {[%emt 0:00:50]} Qb5 {[%emt 0:01:47]} 46. Qa2 {[%emt 0:01:28]} Qd7 {[%emt 0:00:05]} 47. f4 {[%emt 0:00:48]} Ne6 {[%emt 0:00:26]} 48. Bxe6 {[%emt 0:02:29]} fxe6 {[%emt 0:00:07]} 49. f5 {[%emt 0:01:18]} Qc6+ {[%emt 0:00:12]} 50. Kg1 {[%emt 0:00:14]} Qf3 {[%emt 0:01:00]} 51. Qxe6+ {[%emt 0:00:11]} Kh8 {[%emt 0:00:14]} 52. Qe5+ {[%emt 0:00:21]} Kg8 {[%emt 0:00:03]} 53. fxg6 {[%emt 0:01:08]} hxg6 {[%emt 0:00:14]} 54. Qg3 {[%emt 0:00:49]} Qe4 {[%emt 0:00:12]} 55. Bf2 {[%emt 0:00:45]} Bg7 {[%emt 0:00:34]} 56. Qf4 {[%emt 0:00:13]} Qb1+ {[%emt 0:00:37]} 57. Kg2 {[%emt 0:00:05]} Qd3 {[%emt 0:00:36]} 58. h4 {[%emt 0:00:20]} Qd1 {[%emt 0:00:17]} 59. Qe4 {[%emt 0:00:12]} Kf7 {[%emt 0:00:23]} 60. d5 {[%emt 0:00:45]} Bf6 {[%emt 0:00:53]} 61. g5 {[%emt 0:00:16]} Be7 {[%emt 0:00:19]} 62. Qf3+ {[%emt 0:00:11]} 1-0